bitfinex/quotes_SOLUSD_20250528
["timestamp","ask_amount","ask_price","bid_price","bid_amount"]
[1748416072765,16.34002019,174.14,174.08,10.16884024]
[1748416073078,5.74217628,174.15,174.08,36.16884024]
[1748416073377,22.08196453,174.16,174.08,36.16884024]
[1748416074254,5.74194434,174.16,174.08,36.16884024]
[1748416074558,22.08196453,174.16,174.08,36.16884024]
[1748416075770,5.74194434,174.16,174.08,36.16884024]
[1748416076075,22.08196453,174.16,174.08,36.16884024]
[1748416076460,22.08196453,174.16,174.08,35.59444852]
[1748416078680,5.74194434,174.16,174.08,35.59444852]
[1748416078883,22.08196453,174.16,174.08,35.59444852]
[1748416079479,5.74194434,174.16,174.08,35.59444852]
[1748416079686,5.74194434,174.16,174.11,26.0]
[1748416079880,22.08196453,174.16,174.12,35.06]
[1748416081163,16.34002019,174.15,174.12,35.06]
[1748416081388,22.08196453,174.16,174.12,35.06]
[1748416081867,5.74194434,174.16,174.12,35.06]
[1748416083584,22.08196453,174.16,174.12,35.06]
[1748416085375,22.08196453,174.16,174.13,9.08]
[1748416087093,5.74194434,174.16,174.13,9.08]
[1748416089289,5.74118727,174.18,174.13,9.08]
[1748416089478,16.34002019,174.17,174.13,9.08]
[1748416090488,152.4261,174.21,174.13,35.08]
[1748416090691,16.34002019,174.21,174.13,36.22852364]
[1748416091171,5.73986913,174.22,174.13,36.22852364]
[1748416091361,22.08084082,174.2,174.13,36.22852364]
[1748416092196,5.74082063,174.2,174.13,36.22852364]
[1748416092394,22.08084082,174.2,174.13,36.22852364]
[1748416092992,16.34002019,174.18,174.13,35.08]
[1748416093170,16.34002019,174.16,174.13,35.08]
[1748416093988,18.64964886,174.19,174.13,35.08]
[1748416094194,16.34002019,174.16,174.13,35.08]
[1748416095300,22.08191129,174.16,174.13,35.08]
[1748416095675,5.7418911,174.16,174.13,35.08]
[1748416095881,22.08191129,174.16,174.13,35.08]
[1748416096383,16.34002019,174.16,174.13,35.08]
[1748416097002,5.74091832,174.19,174.13,36.22856001]
[1748416097172,16.34002019,174.18,174.13,36.22856001]
[1748416098394,5.74091832,174.19,174.13,36.22856001]
[1748416098597,16.34002019,174.18,174.13,36.22856001]
[1748416099310,16.34002019,174.2,174.13,36.22856001]
[1748416099979,146.4,174.22,174.13,36.22856001]
[1748416100178,16.34002019,174.2,174.13,36.22856001]
[1748416100375,152.13989534,174.22,174.13,36.22856001]
[1748416100578,16.34002019,174.2,174.13,36.22856001]
[1748416101199,178.13989534,174.22,174.13,10.22856001]
[1748416101395,172.4,174.22,174.13,13.09997791]
[1748416101692,188.74002019,174.22,174.13,13.09997791]
[1748416102797,16.34002019,174.21,174.13,39.09997791]
[1748416103785,22.08038599,174.21,174.13,39.09997791]
[1748416104278,22.08038599,174.21,174.13,36.22856001]
[1748416104489,5.7403658,174.21,174.13,36.22856001]
[1748416104805,22.08038599,174.21,174.13,36.22856001]
[1748416105686,22.08038599,174.21,174.13,10.22856001]
[1748416105891,5.73953968,174.23,174.13,13.09997791]
[1748416106095,22.07955987,174.23,174.13,13.09997791]
[1748416106301,16.34002019,174.22,174.13,13.09997791]
[1748416106602,16.34002019,174.22,174.13,13.67426149]
[1748416107320,16.34002019,174.22,174.13,10.80284359]
[1748416108005,22.07993251,174.22,174.13,10.80284359]
[1748416108309,16.34002019,174.21,174.13,10.80284359]
[1748416108491,22.07993251,174.22,174.13,10.80284359]
[1748416109217,5.73953968,174.23,174.13,10.80284359]
[1748416109529,16.34002019,174.22,174.13,10.80284359]
[1748416109897,16.34002019,174.22,174.15,26.0]
[1748416110519,22.08018489,174.22,174.16,0.57418465]
[1748416111025,16.34002019,174.21,174.15,26.57420526]
[1748416111539,5.73941856,174.24,174.15,29.59384933]
[1748416111830,16.34002019,174.23,174.15,29.59384933]
[1748416112321,16.34002019,174.22,174.15,29.59384933]
[1748416112738,22.07962788,174.23,174.15,29.59384933]
[1748416113611,5.73960769,174.23,174.16,26.0]
[1748416113814,22.07962788,174.23,174.17,0.57415169]
[1748416114002,5.73960769,174.23,174.18,35.04]
[1748416114203,5.73960769,174.23,174.19,9.06]
[1748416114432,22.07962788,174.23,174.19,9.06]
[1748416116120,6.4356,174.25,174.19,9.06]
[1748416116318,5.73878709,174.26,174.19,35.63408325]
[1748416116504,22.07880728,174.26,174.19,35.63408325]
[1748416118104,162.30979114,174.32,174.22,26.0]
[1748416118325,16.34002019,174.3,174.23,35.04]
[1748416118526,16.34002019,174.29,174.23,35.04]
[1748416118726,16.34002019,174.28,174.23,35.04]
[1748416119219,18.64964886,174.31,174.23,35.04]
[1748416119424,16.34002019,174.29,174.23,35.61394364]
[1748416119820,22.07735466,174.3,174.23,35.61394364]
[1748416121511,22.07735466,174.3,174.24,1.47391052]
[1748416121713,22.07735466,174.3,174.25,9.06]
[1748416122425,5.73697595,174.31,174.25,9.06]
[1748416122602,16.34002019,174.3,174.25,9.06]
[1748416123430,22.0773935,174.3,174.25,9.06]
[1748416124538,16.34002019,174.28,174.25,9.06]
[1748416125548,22.07818379,174.28,174.25,9.06]
[1748416126338,16.34002019,174.27,174.25,9.06]
[1748416127439,22.07837548,174.27,174.25,9.06]
[1748416129127,22.07802234,174.28,174.25,9.06]
[1748416130016,5.73800215,174.28,174.25,9.06]
[1748416130231,5.73723465,174.3,174.25,9.06]
[1748416130435,16.34002019,174.29,174.25,9.06]
[1748416130622,16.34002019,174.28,174.25,9.06]
[1748416131932,5.73723465,174.3,174.25,9.06]
[1748416132120,16.34002019,174.28,174.25,9.06]
[1748416132325,22.07824248,174.27,174.25,9.06]
[1748416133524,5.73822229,174.27,174.25,9.06]
[1748416133722,22.07824248,174.27,174.25,9.06]
[1748416134733,14.34410633,174.29,174.25,9.06]
[1748416134928,16.34002019,174.27,174.25,9.06]
[1748416135739,14.34410633,174.29,174.25,9.06]
[1748416135938,16.34002019,174.27,174.25,9.06]
[1748416136243,16.34002019,174.26,174.25,9.06]
[1748416136837,5.73855158,174.26,174.25,9.06]
[1748416137137,22.07857177,174.26,174.25,9.06]
[1748416137451,5.73855158,174.26,174.25,9.06]
[1748416137614,22.07857177,174.26,174.25,9.06]
[1748416137819,5.73855158,174.26,174.25,9.06]
[1748416138051,5.73723465,174.3,174.25,9.06]
[1748416138218,16.34002019,174.27,174.25,9.06]
[1748416138409,16.34002019,174.26,174.25,9.06]
[1748416139013,18.64964886,174.29,174.25,9.06]
[1748416139219,16.34002019,174.26,174.25,9.06]
[1748416139842,18.64964886,174.29,174.25,9.06]
[1748416140163,10.419292,174.26,174.25,9.06]
[1748416140742,18.64964886,174.29,174.25,9.06]
[1748416140941,10.419292,174.26,174.25,9.06]
[1748416141661,5.73789304,174.28,174.25,9.06]
[1748416141866,10.419292,174.26,174.25,9.06]
[1748416142662,5.73789304,174.28,174.25,9.06]
[1748416142898,10.419292,174.26,174.25,9.06]
[1748416143425,10.419292,174.26,174.25,9.96]
[1748416143627,5.73789304,174.28,174.25,9.96]
[1748416143865,5.73789304,174.28,174.25,9.06]
[1748416144144,10.419292,174.26,174.25,9.06]
[1748416144732,5.73789304,174.28,174.25,9.06]
[1748416144954,10.419292,174.26,174.25,9.06]
[1748416145537,5.73789304,174.28,174.25,9.06]
[1748416145743,10.419292,174.26,174.25,9.06]
[1748416146673,20.08032128,174.3,174.25,9.06]
[1748416146960,10.419292,174.26,174.25,9.06]
[1748416147962,20.08032128,174.3,174.25,9.06]
[1748416148147,10.419292,174.26,174.25,9.06]
[1748416148534,20.08032128,174.3,174.25,9.06]
[1748416149465,10.419292,174.27,174.25,9.06]
[1748416149842,20.08032128,174.3,174.25,9.06]
[1748416150050,10.419292,174.27,174.25,9.06]
[1748416150250,20.08032128,174.3,174.25,9.06]
[1748416150435,10.419292,174.27,174.25,9.06]
[1748416150839,5.73723465,174.3,174.25,9.06]
[1748416151055,10.419292,174.27,174.25,9.06]
[1748416151862,10.419292,174.26,174.25,9.06]
[1748416153054,16.15784358,174.26,174.25,9.06]
[1748416154543,5.73855158,174.26,174.25,9.06]
[1748416154744,16.15784358,174.26,174.25,9.06]
[1748416160051,16.15784358,174.26,174.22,9.12]
[1748416160378,10.419292,174.25,174.22,9.12]
[1748416160569,16.15842919,174.25,174.22,9.12]
[1748416162479,10.419292,174.24,174.22,9.12]
[1748416162656,5.73953968,174.23,174.22,9.12]
[1748416163981,16.15862719,174.24,174.22,9.12]
[1748416165769,5.73933519,174.24,174.22,9.12]
[1748416167078,18.64964886,174.29,174.22,9.12]
[1748416167285,2.14419298,174.28,174.22,9.12]
[1748416167470,10.419292,174.27,174.22,9.12]
[1748416167856,10.419292,174.26,174.22,9.12]
[1748416168056,10.419292,174.25,174.22,9.12]
[1748416168577,5.73789304,174.28,174.22,9.12]
[1748416168578,10.419292,174.24,174.22,9.12]
[1748416170165,10.419292,174.25,174.22,9.12]
[1748416171496,16.1584198,174.25,174.22,9.12]
[1748416174488,16.15795388,174.26,174.22,9.12]
[1748416174690,5.73866188,174.26,174.22,9.12]
[1748416174894,16.15795388,174.26,174.22,9.12]
[1748416175421,5.73866188,174.26,174.22,9.12]
[1748416175575,7.88254141,174.3,174.22,9.12]
[1748416175782,10.419292,174.26,174.22,9.12]
[1748416177079,10.419292,174.27,174.22,9.12]
[1748416177695,16.15767437,174.27,174.22,9.12]
[1748416178010,16.15767437,174.27,174.22,9.69398357]
[1748416179606,16.15767437,174.27,174.22,9.12]
[1748416179805,10.419292,174.26,174.22,9.12]
[1748416180097,10.419292,174.24,174.22,9.12]
[1748416180605,10.419292,174.23,174.22,9.12]
[1748416181702,16.15883168,174.23,174.22,9.12]
[1748416184591,49.15732976,174.23,174.15,26.0]
[1748416184791,10.419292,174.18,174.17,9.22]
[1748416186698,5.74118727,174.18,174.17,9.22]
[1748416187622,16.16047927,174.18,174.17,9.22]
[1748416190226,10.419292,174.18,174.17,9.22]
[1748416192223,16.16047927,174.18,174.17,9.22]
[1748416194417,5.74052812,174.2,174.17,9.22]
[1748416194617,16.15982012,174.2,174.17,9.22]
[1748416196023,16.159576,174.21,174.17,9.22]
[1748416200720,10.419292,174.2,174.17,9.22]
[1748416202609,10.419292,174.21,174.17,9.22]
[1748416203622,10.419292,174.21,174.17,9.79414701]
[1748416203833,16.15828302,174.25,174.17,70.97414701]
[1748416204125,5.73899102,174.25,174.17,70.97414701]
[1748416204298,10.419292,174.25,174.17,70.97414701]
[1748416205433,10.419292,174.24,174.17,70.97414701]
[1748416206722,10.419292,174.25,174.17,70.97414701]
[1748416207822,16.15823737,174.25,174.17,70.97414701]
[1748416208017,15.65823737,174.25,174.17,70.97414701]
[1748416210735,10.419292,174.24,174.17,70.97414701]
[1748416211132,10.419292,174.23,174.18,35.14]
[1748416211337,10.419292,174.24,174.18,35.14]
[1748416211521,10.419292,174.25,174.18,35.14]
[1748416212437,5.73921028,174.24,174.19,0.57408576]
[1748416213217,16.15850228,174.24,174.19,0.57408576]
[1748416213825,16.15850228,174.24,174.18,35.71410722]
[1748416216338,16.15850228,174.24,174.19,0.9]
[1748416216935,10.419292,174.25,174.19,0.9]
[1748416218851,5.73921028,174.24,174.19,0.9]
[1748416221230,5.73855158,174.26,174.19,1.47408447]
[1748416221635,10.419292,174.25,174.19,1.47408447]
[1748416224350,5.73921028,174.24,174.19,1.47408447]
[1748416224852,5.73921028,174.24,174.19,0.9]
[1748416225834,5.73921028,174.24,174.19,1.47408162]
[1748416227334,5.73921028,174.24,174.19,0.9]
[1748416228339,5.73921028,174.24,174.2,9.16]
[1748416230660,16.15850228,174.24,174.2,9.16]
[1748416231356,16.15828996,174.25,174.2,9.16]
[1748416233135,16.15828996,174.25,174.21,9.1]
[1748416237861,16.15828996,174.25,174.22,9.1]
[1748416240491,10.419292,174.23,174.22,9.1]
[1748416242462,16.15883168,174.23,174.22,9.1]
[1748416242650,30.5076809,174.23,174.17,9.1]
[1748416242972,10.419292,174.18,174.17,9.1]
[1748416243984,10.419292,174.19,174.17,9.1]
[1748416244356,5.74019861,174.21,174.17,9.1]
[1748416244687,10.419292,174.23,174.17,9.1]
[1748416247164,5.73986913,174.22,174.17,9.1]
[1748416247367,16.15916113,174.22,174.17,9.1]
[1748416248473,10.419292,174.21,174.17,9.1]
[1748416250092,16.15976987,174.21,174.17,9.1]
[1748416254595,5.74047787,174.21,174.17,9.1]
[1748416258899,16.15976987,174.21,174.17,9.1]
[1748416262102,10.419292,174.22,174.17,9.1]
[1748416263578,5.74019861,174.21,174.17,9.1]
[1748416266286,5.73953968,174.23,174.17,9.1]
[1748416266809,16.15883168,174.23,174.17,9.67414918]
[1748416267005,10.419292,174.22,174.17,9.1]
[1748416267710,16.15944211,174.22,174.17,9.1]
[1748416270549,6.1543,174.27,174.17,9.67414465]
[1748416270716,10.419292,174.27,174.18,60.96]
[1748416271812,10.419292,174.27,174.19,0.57408576]
[1748416271993,16.15718504,174.28,174.21,26.0]
[1748416272309,1.5985,174.27,174.19,2.00930018]
[1748416272510,10.419292,174.2,174.15,9.02]
[1748416273013,10.419292,174.21,174.15,9.02]
[1748416273385,16.15958012,174.21,174.15,9.02]
[1748416273800,10.419292,174.2,174.15,9.02]
[1748416274391,10.419292,174.19,174.15,9.02]
[1748416275001,10.419292,174.17,174.15,9.02]
[1748416275212,10.419292,174.17,174.1,82.54]
[1748416275213,10.419292,174.16,174.1,82.54]
[1748416275415,10.419292,174.15,174.11,9.02]
[1748416275593,10.419292,174.16,174.11,9.02]
[1748416276039,16.29887266,174.16,174.11,9.02]
[1748416276892,16.29887266,174.15,174.11,9.02]
[1748416277513,8.2174,174.2,174.11,9.59433906]
[1748416277695,16.29887266,174.2,174.14,26.0]
[1748416277893,22.0395065,174.2,174.14,26.0]
[1748416278990,22.0395065,174.2,174.14,26.57423709]
[1748416281933,22.0395065,174.2,174.15,9.02]
[1748416284231,16.29887266,174.2,174.15,9.59420082]
[1748416285607,22.03941622,174.2,174.15,9.59420082]
[1748416289025,22.03941622,174.2,174.15,9.02]
[1748416289233,16.29887266,174.19,174.15,9.02]
[1748416291034,5.73953968,174.23,174.15,9.02]
[1748416291229,16.29887266,174.2,174.15,9.59421724]
[1748416291442,16.29887266,174.2,174.16,9.02]
[1748416292523,22.03931386,174.21,174.16,9.02]
[1748416294445,22.03931386,174.21,174.16,9.59417704]
[1748416294943,22.03931386,174.21,174.16,9.02]
[1748416296343,22.03931386,174.21,174.16,9.59418336]
[1748416296939,22.03931386,174.21,174.16,9.02]
[1748416298049,22.03931386,174.21,174.16,9.59418113]
[1748416299954,10.42506218,174.2,174.16,9.59418113]
[1748416301051,7.9159,174.24,174.17,9.02]
[1748416301251,10.42506218,174.22,174.17,9.02]
[1748416302150,16.16497095,174.22,174.17,9.59414363]
[1748416303957,16.16497095,174.22,174.17,9.02]
[1748416304129,10.42506218,174.21,174.17,9.02]
[1748416305173,16.1655363,174.21,174.17,9.02]
[1748416305858,16.1655363,174.21,174.18,9.02]
[1748416307759,10.42506218,174.21,174.18,9.02]
[1748416309358,5.73953968,174.23,174.18,9.02]
[1748416309540,10.42506218,174.22,174.18,9.02]
[1748416309740,10.42506218,174.21,174.18,9.02]
[1748416310960,16.16539958,174.21,174.18,9.02]
[1748416311165,10.42506218,174.19,174.18,9.02]
[1748416311961,10.42506218,174.2,174.18,9.02]
[1748416313056,16.16581703,174.2,174.18,9.02]
[1748416314763,10.42506218,174.19,174.18,9.02]
[1748416316763,16.16591986,174.19,174.18,9.02]
[1748416333782,5.74019861,174.21,174.18,9.02]
[1748416333981,10.42506218,174.21,174.18,9.02]
[1748416334668,10.42506218,174.2,174.18,9.02]
[1748416335559,10.42506218,174.19,174.18,9.02]
[1748416336367,16.1656593,174.2,174.18,9.02]
[1748416337181,10.42506218,174.2,174.18,9.02]
[1748416340778,16.1656742,174.2,174.18,9.02]
[1748416342293,10.42506218,174.2,174.18,9.02]
[1748416344476,5.74032169,174.21,174.18,9.02]
[1748416344675,10.42506218,174.2,174.18,9.02]
[1748416347284,16.16567993,174.2,174.18,9.02]
[1748416348899,10.42506218,174.19,174.18,9.02]
[1748416349088,16.16591986,174.19,174.18,9.02]
[1748416349282,16.16591986,174.19,174.13,88.1]
[1748416349483,5.74085768,174.19,174.18,9.04]
[1748416350582,16.16591986,174.19,174.18,9.04]
[1748416352581,10.42506218,174.19,174.18,9.04]
[1748416354102,5.7406512,174.2,174.18,9.04]
[1748416354404,10.42506218,174.19,174.18,9.04]
[1748416355907,16.16591986,174.19,174.18,9.04]
[1748416367003,34.81556872,174.19,174.18,9.04]
[1748416367198,36.96147685,174.19,174.18,9.04]
[1748416368300,26.53641467,174.19,174.18,9.04]
[1748416368523,36.96147685,174.19,174.18,9.04]
[1748416369220,34.81556872,174.19,174.18,9.04]
[1748416369526,36.96116385,174.19,174.18,9.04]
[1748416370222,51.31330806,174.19,174.1,1.5192]
[1748416370519,10.42506218,174.13,174.11,9.02]
[1748416371794,10.42506218,174.12,174.09,26.0]
[1748416372103,10.42506218,174.1,174.08,9.02]
[1748416372319,10.42506218,174.09,174.08,9.02]
[1748416375227,16.1692175,174.09,174.08,9.02]
[1748416376106,10.42506218,174.09,174.08,9.02]
[1748416381539,16.1692175,174.09,174.08,9.02]
[1748416389641,34.81886636,174.09,174.08,9.02]
[1748416390020,49.17925466,174.09,174.03,9.08]
[1748416390236,10.42506218,174.04,174.03,9.08]
[1748416391951,16.17086774,174.04,174.03,9.08]
[1748416392734,10.42506218,174.05,174.03,9.08]
[1748416392933,5.74540321,174.06,174.03,9.08]
[1748416392934,16.17046539,174.06,174.03,9.08]
[1748416396847,10.42506218,174.05,174.03,9.08]
[1748416399023,5.74580556,174.04,174.03,9.08]
[1748416400946,16.17086774,174.04,174.03,9.08]
[1748416403656,5.74580556,174.04,174.03,9.08]
[1748416403857,10.42506218,174.06,174.03,9.08]
[1748416405457,16.17028581,174.06,174.03,9.08]
[1748416406433,32.574,174.11,174.03,9.08]
[1748416406643,5.74382538,174.1,174.03,11.21160965]
[1748416406861,16.16888756,174.1,174.03,11.21160965]
[1748416407375,16.16789799,174.13,174.06,26.0]
[1748416407670,5.74283581,174.13,174.07,35.0]
[1748416408037,16.16789799,174.13,174.07,35.0]
[1748416408753,26.0,174.17,174.07,40.20875382]
[1748416408754,5.74217628,174.15,174.07,40.20875382]
[1748416408960,16.16723846,174.15,174.07,123.67448085]
[1748416409138,10.42506218,174.14,174.07,123.67448085]
[1748416409790,5.74283581,174.13,174.07,123.67448085]
[1748416413558,16.30069026,174.15,174.07,123.67448085]
[1748416413876,16.30069026,174.15,174.07,128.27988003]
[1748416414589,22.04314802,174.15,174.07,128.27988003]
[1748416414955,16.30069026,174.12,174.07,123.1]
[1748416415382,16.30069026,174.11,174.07,88.1]
[1748416415588,16.30069026,174.13,174.07,88.1]
[1748416417175,22.04361105,174.13,174.07,88.1]
[1748416417479,22.04361105,174.13,174.07,88.67446287]
[1748416419160,16.30069026,174.14,174.07,88.67446287]
[1748416419780,16.30069026,174.11,174.07,88.1]
[1748416420192,16.30069026,174.13,174.07,88.1]
[1748416420714,16.30069026,174.13,174.06,123.69448709]
[1748416421074,5.74184657,174.16,174.06,123.69448709]
[1748416421274,16.30069026,174.15,174.07,26.0]
[1748416421485,16.30069026,174.16,174.07,26.0]
[1748416422459,5.74217628,174.15,174.08,0.57444852]
[1748416422649,5.74217628,174.15,174.09,9.04]
[1748416423581,16.30069026,174.15,174.09,9.61439567]
[1748416423776,16.30069026,174.16,174.09,9.61439567]
[1748416423959,16.30069026,174.16,174.09,11.17309567]
[1748416425479,5.7415169,174.17,174.09,11.17309567]
[1748416425708,22.04220716,174.17,174.09,11.17309567]
[1748416426060,16.30069026,174.16,174.09,11.17309567]
[1748416426891,5.74217628,174.15,174.09,11.17309567]
[1748416429470,5.74217628,174.15,174.09,99.27309567]
[1748416435118,5.74217628,174.15,174.1,35.0]
[1748416438509,16.30069026,174.15,174.1,35.0]
[1748416439910,5.74250602,174.14,174.1,35.0]
[1748416440412,5.74250602,174.14,174.11,9.04]
[1748416445220,5.74250602,174.14,174.12,9.02]
[1748416446425,16.17282497,174.14,174.12,9.02]
[1748416446600,10.43031895,174.13,174.12,9.02]
[1748416447611,16.17315476,174.13,174.12,9.02]
[1748416469027,16.17315476,174.13,174.1,9.02]
[1748416469226,10.43031895,174.12,174.1,9.02]
[1748416469536,5.74283581,174.13,174.1,9.02]
[1748416469743,10.43031895,174.12,174.1,9.02]
[1748416471035,16.17364697,174.12,174.1,9.02]
[1748416471647,14.35368402,174.18,174.1,9.02]
[1748416471829,10.43031895,174.16,174.1,9.02]
[1748416472245,10.43031895,174.16,174.1,9.59437277]
[1748416473856,16.1724317,174.16,174.1,9.59437277]
[1748416474955,10.43031895,174.16,174.1,9.59437277]
[1748416476839,10.43031895,174.16,174.1,97.69437277]
[1748416484245,16.17191642,174.17,174.1,97.69437277]
[1748416486872,5.74118727,174.18,174.1,97.69437277]
[1748416487169,10.43031895,174.17,174.1,97.69437277]
[1748416488362,5.74184657,174.16,174.1,97.69437277]
[1748416489469,5.74184657,174.16,174.11,34.98]
[1748416489849,5.74184657,174.16,174.11,35.55434868]
[1748416492646,10.43031895,174.12,174.04,1.43639416]
[1748416492851,10.43031895,174.12,174.07,9.02]
[1748416493646,10.43031895,174.11,174.07,9.02]
[1748416494460,10.43031895,174.1,174.07,9.02]
[1748416494968,5.74415532,174.09,174.07,9.02]
[1748416502671,10.43031895,174.12,174.07,9.02]
[1748416503079,10.43031895,174.13,174.07,9.02]
[1748416503485,16.17282497,174.14,174.07,97.69447246]
[1748416503773,5.74250602,174.14,174.07,97.69447246]
[1748416505276,10.43031895,174.14,174.07,97.12]
[1748416506272,5.74283581,174.13,174.07,97.69447808]
[1748416507290,16.17291198,174.14,174.07,97.69447808]
[1748416507471,5.74259303,174.14,174.07,97.69447808]
[1748416508373,5.74217628,174.15,174.07,97.69447808]
[1748416509378,16.17249523,174.15,174.07,97.69447808]
[1748416513794,5.74217628,174.15,174.07,97.69447808]
[1748416514006,5.74283581,174.13,174.07,97.69447808]
[1748416515570,10.43031895,174.12,174.07,97.12]
[1748416515771,10.43031895,174.11,174.07,9.02]
[1748416515965,5.74382538,174.1,174.07,43.98]
[1748416517601,5.74382538,174.1,174.07,54.41540994]
[1748416519191,5.74382538,174.1,174.07,43.98]
[1748416522606,5.74382538,174.1,174.07,54.41540994]
[1748416526376,10.43540994,174.08,174.07,9.02]
[1748416527678,16.17989523,174.08,174.07,9.02]
[1748416527892,34.82954409,174.08,174.07,9.02]
[1748416535003,36.96848565,174.08,174.07,9.02]
[1748416535300,34.82954409,174.08,174.07,9.02]
[1748416540284,60.82954409,174.08,174.07,9.02]
[1748416546958,75.19075732,174.08,174.02,9.02]
[1748416547455,10.44506586,174.03,174.02,9.02]
[1748416548842,16.19120158,174.03,174.02,9.02]
[1748416551909,34.84085044,174.03,174.02,9.02]
[1748416554330,34.84085044,174.03,173.97,1.5787]
[1748416554511,10.44506586,174.0,173.98,9.02]
[1748416554706,10.44506586,174.0,173.97,1.5787]
[1748416554932,10.44506586,174.0,173.98,9.02]
[1748416555322,5.74646592,174.02,173.98,9.02]
[1748416555519,10.44506586,174.01,173.98,9.02]
[1748416555932,10.44506586,174.01,173.97,1.5787]
[1748416556114,10.44506586,174.01,173.98,44.0]
[1748416556312,10.44506586,174.01,173.97,1.5787]
[1748416556740,10.44506586,174.0,173.98,9.02]
[1748416556941,10.44506586,174.0,173.98,44.0]
[1748416557312,10.44506586,174.0,173.97,1.5787]
[1748416557513,10.44506586,174.0,173.98,44.0]
[1748416557936,10.44506586,174.0,173.99,9.02]
[1748416558439,10.44506586,174.01,173.99,9.02]
[1748416559646,10.44506586,174.02,173.99,9.02]
[1748416562137,10.44648009,174.02,173.99,9.02]
[1748416565830,10.44648009,174.03,173.99,9.02]
[1748416566042,16.19262786,174.03,173.99,9.02]
[1748416568749,10.44648009,174.04,174.0,10.44648009]
[1748416570033,16.19243702,174.04,174.0,10.44648009]
[1748416570439,16.19243702,174.04,173.99,107.56648009]
[1748416570645,10.44648009,174.03,173.99,97.12]
[1748416572452,10.44648009,174.03,173.99,97.69472674]
[1748416574451,10.44648009,174.03,173.99,107.56648009]
[1748416575143,16.19268885,174.03,173.99,107.56648009]
[1748416576346,10.44648009,174.03,173.99,108.14122243]
[1748416578053,16.19237859,174.04,173.99,108.14122243]
[1748416578254,16.19237859,174.04,173.99,107.56648009]
[1748416579330,10.44648009,174.04,174.0,10.44648009]
[1748416579535,16.19229787,174.04,174.0,10.44648009]
[1748416579953,10.44648009,174.04,174.0,10.44648009]
[1748416580242,10.44648009,174.04,174.0,98.54648009]
[1748416581338,5.74514535,174.06,174.0,98.54648009]
[1748416581538,10.44648009,174.05,174.0,98.54648009]
[1748416582440,5.74580556,174.04,174.0,98.54648009]
[1748416585672,16.19228565,174.04,174.0,98.54648009]
[1748416587876,16.19228565,174.04,174.01,9.02]
[1748416589269,5.74580556,174.04,174.01,9.02]
[1748416589448,5.74580556,174.04,174.01,19.46648009]
[1748416591956,5.74514535,174.06,174.02,45.42648009]
[1748416592161,16.19162544,174.06,174.02,45.42648009]
[1748416596578,5.74514535,174.06,174.03,10.44648009]
[1748416597157,5.74448529,174.08,174.04,10.44648009]
[1748416597487,5.74448529,174.08,174.05,10.44648009]
[1748416602377,5.74448529,174.08,174.06,9.02]
[1748416603682,18.64964886,174.16,174.07,45.40648009]
[1748416603880,10.44648009,174.15,174.1,10.44648009]
[1748416604082,10.44648009,174.14,174.1,10.44648009]
[1748416604281,5.74283581,174.13,174.1,10.44648009]
[1748416605565,10.44648009,174.14,174.1,10.44648009]
[1748416605763,16.18872281,174.15,174.1,10.44648009]
[1748416607677,10.44648009,174.15,174.11,10.44648009]
[1748416607869,5.74195232,174.16,174.1,0.57438191]
[1748416607870,5.74195232,174.16,174.12,19.44648009]
[1748416609787,5.74195232,174.16,174.13,10.44648009]
[1748416609978,5.74195232,174.16,174.12,19.44648009]
[1748416610892,10.44648009,174.17,174.12,9.0]
[1748416611103,5.74052812,174.2,174.16,10.44648009]
[1748416611264,5.74052812,174.2,174.17,10.44648009]
[1748416611463,5.74052812,174.2,174.18,19.44648009]
[1748416611876,5.73996862,174.22,174.19,10.44648009]
[1748416613976,16.28480313,174.23,174.19,16.28480313]
[1748416614372,22.02401341,174.24,174.2,16.28480313]
[1748416615691,5.73921028,174.24,174.2,16.28480313]
[1748416615948,5.73921028,174.24,174.21,16.28480313]